bitfinex/quotes_SOLUSD_20250830
["timestamp","ask_amount","ask_price","bid_price","bid_amount"]
[1756532942262,67.4949163,206.9,206.89,1e-08]
[1756532942468,76.29049097,206.9,206.89,1e-08]
[1756532945564,64.96216157,206.81,206.8,0.71]
[1756532947955,78.55775558,206.81,206.8,0.71]
[1756532951465,38.90216157,206.81,206.8,0.71]
[1756532952748,38.90216157,206.81,206.79,0.2]
[1756532952749,0.14216157,206.8,206.79,0.2]
[1756532953152,0.14216157,206.8,206.79,0.91]
[1756532954881,0.14216157,206.8,206.79,0.2]
[1756532955066,0.14216157,206.8,206.79,0.91]
[1756532955780,0.14216157,206.8,206.79,0.2]
[1756532957679,13.73775558,206.8,206.79,0.2]
[1756532958977,18.57334552,206.8,206.79,0.2]
[1756532960585,25.57004852,206.8,206.79,0.2]
[1756532961180,45.57004852,206.8,206.79,0.2]
[1756532963090,47.50958352,206.8,206.79,0.2]
[1756532963487,18.57404711,206.77,206.76,0.03]
[1756532963789,57.35404711,206.77,206.76,0.03]
[1756532964495,24.95075011,206.77,206.76,0.03]
[1756532964672,63.73075011,206.77,206.76,0.03]
[1756532967290,64.35075011,206.77,206.76,0.03]
[1756532968601,26.0,206.69,206.68,0.2]
[1756532968771,64.78,206.69,206.68,0.2]
[1756532970698,64.78,206.69,206.68,0.91]
[1756532971203,26.0,206.69,206.68,0.91]
[1756532971396,64.78,206.69,206.68,0.91]
[1756532974809,64.78,206.69,206.68,0.2]
[1756532975489,90.41262201,206.69,206.68,0.2]
[1756532975690,84.89445858,206.69,206.68,0.2]
[1756532976007,39.73775558,206.69,206.68,0.85]
[1756532976312,78.51775558,206.69,206.68,0.85]
[1756532980108,78.51775558,206.69,206.68,0.35]
[1756532980519,0.14216157,206.68,206.65,0.03]
[1756532980721,38.78,206.67,206.65,0.03]
[1756532982027,38.76,206.67,206.65,0.03]
[1756532982201,38.76,206.67,206.66,0.65]
[1756532983102,26.0,206.68,206.66,0.65]
[1756532983418,64.78,206.68,206.66,0.65]
[1756532983719,26.0,206.66,206.65,0.03]
[1756532984119,26.0,206.66,206.65,0.68]
[1756532985629,26.0,206.66,206.65,5.51909992]
[1756532988330,26.0,206.66,206.65,0.68]
[1756532989217,26.0,206.66,206.65,0.03]
[1756532989428,26.0,206.66,206.65,0.68]
[1756532989811,0.68,206.66,206.65,0.03]
[1756532990014,38.76,206.67,206.65,0.03]
[1756532990218,0.68,206.66,206.65,0.03]
[1756532992948,38.76,206.67,206.65,0.03]
[1756532993122,0.68,206.66,206.65,0.03]
[1756532996028,64.76,206.66,206.65,0.68]
[1756532996231,64.76,206.66,206.65,0.03]
[1756532996442,65.44,206.66,206.65,0.03]
[1756532996628,79.17775558,206.66,206.65,0.03]
[1756532996833,84.91673636,206.66,206.65,0.03]
[1756532997041,90.10563328,206.66,206.65,0.03]
[1756532997221,94.94449904,206.66,206.65,0.03]
[1756532999053,98.81934937,206.66,206.65,0.03]
[1756532999344,55.22048361,206.66,206.65,0.03]
[1756532999758,93.96048361,206.66,206.65,0.03]
[1756533000550,98.79934937,206.66,206.65,0.03]
[1756533002552,104.18283845,206.66,206.65,0.03]
[1756533004351,108.24486296,206.66,206.65,0.03]
[1756533005767,20.0,206.55,206.43,4.84421381]
[1756533005948,0.14216157,206.49,206.36,12.11417103]
[1756533006164,26.0,206.45,206.44,0.66]
[1756533006467,39.64,206.46,206.44,0.66]
[1756533006777,26.0,206.42,206.33,14.055966]
[1756533007073,26.0,206.41,206.33,12.11651238]
[1756533007239,26.0,206.41,206.34,0.66]
[1756533007445,14.56346,206.48,206.34,0.66]
[1756533007446,26.0,206.45,206.34,0.66]
[1756533007641,65.64,206.44,206.36,16.96065128]
[1756533007880,26.0,206.44,206.37,0.66]
[1756533008577,26.0,206.41,206.37,0.66]
[1756533009474,26.0,206.45,206.37,0.66]
[1756533009684,26.0,206.4,206.37,0.66]
[1756533009881,26.0,206.4,206.37,5.50543454]
[1756533010095,26.0,206.41,206.38,0.66]
[1756533011344,26.0,206.41,206.39,0.66]
[1756533011544,26.0,206.42,206.39,0.66]
[1756533011746,39.6,206.46,206.39,0.66]
[1756533011946,157.6,206.45,206.4,4.84496124]
[1756533012249,157.6,206.45,206.41,0.66]
[1756533012471,157.6,206.45,206.4,4.84496124]
[1756533012649,157.6,206.45,206.41,0.66]
[1756533014380,26.0,206.43,206.42,4.84449181]
[1756533015275,26.0,206.43,206.42,5.50449181]
[1756533015990,131.6,206.45,206.42,5.50449181]
[1756533016292,39.54,206.51,206.42,17.61572134]
[1756533016461,65.54,206.51,206.43,0.66]
[1756533017050,3.23074013,206.58,206.44,13.59559401]
[1756533017250,39.54,206.57,206.45,0.66]
[1756533017491,39.54,206.57,206.46,13.73775558]
[1756533017795,26.0,206.54,206.47,0.66]
[1756533017993,26.0,206.5,206.47,13.737755]
[1756533018164,26.0,206.46,206.42,4.84449181]
[1756533018533,26.0,206.46,206.43,0.66]
[1756533019368,26.0,206.46,206.39,27.47551058]
[1756533019571,26.0,206.46,206.41,4.84472651]
[1756533019764,26.0,206.46,206.42,0.66]
[1756533020080,26.0,206.46,206.43,0.66]
[1756533020275,26.0,206.46,206.44,0.66]
[1756533020474,26.0,206.46,206.42,0.66]
[1756533020669,26.7,206.46,206.41,4.84472651]
[1756533020877,26.7,206.46,206.41,5.50472651]
[1756533021064,26.0,206.46,206.41,4.84472651]
[1756533021383,26.7,206.46,206.41,5.50472651]
[1756533023881,26.0,206.45,206.41,5.50472651]
[1756533024196,26.7,206.45,206.39,5.5049875]
[1756533024591,26.7,206.45,206.4,0.66]
[1756533025086,26.7,206.45,206.41,0.66]
[1756533025469,26.7,206.45,206.42,4.84449181]
[1756533025670,26.0,206.45,206.43,0.66]
[1756533025989,26.0,206.45,206.44,0.66]
[1756533026293,4.844987,206.52,206.44,0.66]
[1756533026472,45.264987,206.52,206.44,0.66]
[1756533027072,131.6,206.55,206.45,13.73775558]
[1756533027274,131.6,206.55,206.47,13.73775558]
[1756533027487,0.7,206.58,206.49,16.94997336]
[1756533027685,0.7,206.58,206.5,0.66]
[1756533028171,40.5,206.62,206.5,0.66]
[1756533028992,0.7,206.62,206.51,13.73775558]
[1756533029205,131.6,206.64,206.55,13.59559401]
[1756533029375,0.7,206.67,206.57,13.59559401]
[1756533029573,0.14216157,206.62,206.49,0.66]
[1756533029783,69.74,206.61,206.49,0.66]
[1756533030095,74.585196,206.61,206.49,0.66]
[1756533030397,26.7,206.61,206.49,0.66]
[1756533031475,26.7,206.61,206.51,13.73775558]
[1756533031665,26.68,206.6,206.52,0.72]
[1756533033519,0.68,206.6,206.53,16.94669054]
[1756533033800,0.68,206.62,206.54,14.45775558]
[1756533034095,0.68,206.61,206.53,16.94669054]
[1756533034303,0.68,206.61,206.53,17.66669054]
[1756533034675,0.68,206.6,206.53,17.66669054]
[1756533035085,0.68,206.6,206.54,0.72]
[1756533035294,0.74,206.62,206.54,0.72]
[1756533036377,0.74,206.62,206.54,14.31559401]
[1756533036575,0.74,206.62,206.56,13.59559401]
[1756533036576,0.06,206.62,206.56,13.59559401]
[1756533036772,0.06,206.62,206.57,0.72]
[1756533037279,0.06,206.62,206.58,4.84073966]
[1756533037484,0.06,206.62,206.59,0.72]
[1756533039196,0.06,206.62,206.6,4.84027105]
[1756533040089,0.06,206.62,206.6,5.56027105]
[1756533040294,0.06,206.62,206.61,0.72]
[1756533040906,0.06,206.62,206.61,2.659441]
[1756533041208,1e-08,206.62,206.61,21.23723336]
[1756533041909,1e-08,206.62,206.61,7.49947778]
[1756533042109,0.68000001,206.62,206.61,1.939441]
[1756533042312,0.68000001,206.62,206.55,4.84144274]
[1756533042499,0.68,206.61,206.55,4.84144274]
[1756533042695,0.68,206.6,206.55,4.84144274]
[1756533043013,0.68,206.59,206.53,9.68314648]
[1756533043320,0.68,206.59,206.52,4.84214603]
[1756533043886,0.68,206.59,206.52,5.56214603]
[1756533044098,26.68,206.61,206.53,0.72]
[1756533045315,26.0,206.61,206.54,16.94587004]
[1756533045512,26.68,206.61,206.54,17.66587004]
[1756533047110,25.40301004,206.61,206.54,17.66587004]
[1756533047302,24.72301004,206.61,206.54,17.66587004]
[1756533047612,0.68,206.6,206.54,17.66587004]
[1756533048219,0.68,206.6,206.54,4.84167715]
[1756533049222,26.68,206.6,206.54,4.84167715]
[1756533049833,26.68,206.6,206.51,30.68608737]
[1756533050127,26.68,206.6,206.53,0.72]
[1756533050740,26.0,206.6,206.53,0.72]
[1756533051295,1e-08,206.62,206.54,13.73775558]
[1756533051693,1e-08,206.62,206.56,13.73775558]
[1756533051893,1e-08,206.62,206.58,16.94258882]
[1756533052409,1e-08,206.62,206.59,0.72]
[1756533054105,1e-08,206.62,206.6,4.84027105]
[1756533054913,1e-08,206.62,206.6,5.56027105]
[1756533055117,1e-08,206.62,206.6,4.84027105]
[1756533055621,1e-08,206.62,206.6,5.56027105]
[1756533055823,1e-08,206.62,206.61,0.72]
[1756533056039,1e-08,206.62,206.6,5.56027105]
[1756533056214,1e-08,206.62,206.6,4.84027105]
[1756533057316,1e-08,206.62,206.59,4.84050534]
[1756533057619,1e-08,206.62,206.59,5.56050534]
[1756533058604,1e-08,206.62,206.58,16.94258882]
[1756533058823,1e-08,206.62,206.59,0.72]
[1756533059424,1e-08,206.62,206.6,0.72]
[1756533059801,1e-08,206.62,206.61,0.72]
[1756533060227,1e-08,206.62,206.61,2.659441]
[1756533060428,1e-08,206.62,206.61,16.39719658]
[1756533060928,1e-08,206.62,206.61,21.23723336]
[1756533061132,1e-08,206.62,206.61,63.07723336]
[1756533062718,1e-08,206.62,206.61,21.23723336]
[1756533062907,1e-08,206.62,206.61,62.97723336]
[1756533070534,1e-08,206.62,206.61,63.46123703]
[1756533071113,0.06,206.71,206.62,13.73775558]
[1756533071316,0.06,206.71,206.65,0.14216157]
[1756533071514,0.06,206.71,206.67,13.73775558]
[1756533071709,0.06,206.71,206.7,18.57568494]
[1756533071938,0.06,206.71,206.7,59.99568494]
[1756533072332,0.06,206.71,206.7,60.71568494]
[1756533073621,0.06,206.71,206.7,75.25444194]
[1756533074030,0.06,206.71,206.7,74.53444194]
[1756533074550,0.06,206.71,206.7,75.25444194]
[1756533075037,0.06,206.71,206.7,74.53444194]
[1756533075612,0.06,206.71,206.7,74.39444194]
[1756533076510,0.06,206.71,206.7,75.11444194]
[1756533077939,0.06,206.71,206.7,74.39444194]
[1756533079638,0.76,206.71,206.7,19.37668636]
[1756533079839,0.76,206.71,206.68,4.83821377]
[1756533080154,0.7,206.7,206.69,41.12]
[1756533080339,0.7,206.7,206.69,41.16]
[1756533081826,0.7,206.7,206.69,45.99816343]
[1756533082641,0.7,206.7,206.69,4.83816343]
[1756533082940,0.7,206.7,206.69,45.89816343]
[1756533084139,0.06,206.71,206.69,45.89816343]
[1756533084526,0.7,206.78,206.7,14.45775558]
[1756533084734,0.7,206.78,206.69,60.43762543]
[1756533084735,0.7,206.78,206.72,13.73775558]
[1756533084920,0.7,206.78,206.73,41.0]
[1756533085244,0.1,206.83,206.73,41.72]
[1756533085546,0.7,206.82,206.73,41.0]
[1756533085843,0.7,206.81,206.73,41.0]
[1756533086022,0.7,206.8,206.74,4.83699332]
[1756533086419,0.7,206.79,206.75,40.98]
[1756533086637,0.7,206.81,206.76,0.72]
[1756533086847,0.7,206.81,206.77,40.94]
[1756533087917,0.7,206.81,206.78,4.83605764]
[1756533088114,0.7,206.81,206.79,40.94]
[1756533088732,0.7,206.8,206.72,14.45775558]
[1756533088941,0.7,206.79,206.73,40.88]
[1756533089148,0.7,206.78,206.73,40.88]
[1756533089341,0.7,206.77,206.73,40.88]
[1756533089838,0.7,206.77,206.74,4.83699332]
[1756533090424,0.7,206.79,206.75,40.86]
[1756533090617,0.7,206.78,206.75,40.86]
[1756533091040,0.1,206.83,206.76,4.83652544]
[1756533091240,0.66,206.8,206.76,4.83652544]
[1756533091430,0.66,206.79,206.77,40.8]
[1756533091632,0.66,206.78,206.77,40.8]
[1756533092338,0.66,206.82,206.77,40.8]
[1756533092542,0.66,206.81,206.77,40.8]
[1756533092721,0.66,206.8,206.77,40.8]
[1756533093229,0.66,206.8,206.78,4.83605764]
[1756533093429,0.72,206.8,206.78,4.83605764]
[1756533093947,0.06,206.8,206.78,4.83605764]
[1756533094139,0.06,206.8,206.78,5.51605764]
[1756533094327,0.06,206.8,206.79,14.27559401]
[1756533094527,0.06,206.8,206.79,14.41775558]
[1756533095148,1e-08,206.8,206.79,19.25357936]
[1756533096647,1e-08,206.8,206.79,59.91357936]
[1756533098146,1e-08,206.8,206.79,45.43582378]
[1756533099056,1e-08,206.8,206.79,4.83582378]
[1756533099239,1e-08,206.8,206.79,45.39582378]
[1756533100033,0.66000001,206.8,206.79,4.83582378]
[1756533100250,0.66000001,206.8,206.79,40.54]
[1756533100452,1e-08,206.8,206.79,45.37582378]
[1756533100955,0.66000001,206.8,206.79,45.37582378]
[1756533101157,0.66000001,206.8,206.73,4.8372273]
[1756533101350,0.66,206.79,206.74,40.52]
[1756533101549,0.66,206.78,206.74,40.52]
[1756533102461,0.66,206.78,206.75,4.83675937]
[1756533102662,0.66000001,206.8,206.76,40.52]
[1756533102861,0.66,206.79,206.76,40.52]
[1756533103532,1e-08,206.8,206.76,41.2]
[1756533103736,1e-08,206.8,206.77,0.68]
[1756533104070,0.66,206.79,206.78,40.46]
[1756533104435,0.66,206.79,206.78,40.44]
[1756533104846,1e-08,206.8,206.78,45.27605764]
[1756533105141,0.66,206.79,206.78,40.44]
[1756533106162,0.66,206.79,206.78,45.27605764]
[1756533106735,0.66,206.79,206.78,40.42]
[1756533107062,1e-08,206.8,206.78,40.42]
[1756533107250,0.66000001,206.8,206.78,40.42]
[1756533107642,1e-08,206.8,206.78,40.42]
[1756533107848,1e-08,206.8,206.79,0.68]
[1756533108961,1e-08,206.8,206.79,5.51582378]
[1756533109360,1e-08,206.8,206.79,19.25357936]
[1756533113070,1e-08,206.8,206.79,33.78599936]
[1756533114468,0.1,206.83,206.8,13.73775558]
[1756533114666,0.06,206.86,206.83,0.14216157]
[1756533114861,0.06,206.86,206.84,40.84]
[1756533115166,0.06,206.86,206.85,0.68]
[1756533116558,0.06,206.86,206.85,5.51442107]
[1756533116772,0.06,206.86,206.85,4.83442107]
[1756533117379,0.06,206.86,206.85,44.93442107]
[1756533117900,0.06,206.86,206.85,45.61442107]
[1756533118375,0.06,206.86,206.85,44.93442107]
[1756533118670,0.06,206.86,206.85,4.83442107]
[1756533118867,0.06,206.86,206.85,44.93442107]
[1756533120357,0.06,206.86,206.85,59.35217665]
[1756533122884,0.06,206.86,206.85,61.28926865]
[1756533124868,0.06,206.86,206.85,21.18926865]
[1756533125066,0.06,206.86,206.85,61.08926865]
[1756533125269,0.06,206.86,206.85,21.18926865]
[1756533125462,0.06,206.86,206.85,61.08926865]
[1756533126070,0.06,206.86,206.85,20.50926865]
[1756533126263,0.06,206.86,206.85,61.01926865]
[1756533126468,0.06,206.86,206.85,60.36926865]
[1756533126695,0.77,206.86,206.85,46.63151307]
[1756533126870,0.06,206.86,206.85,46.63151307]
[1756533127257,0.06,206.86,206.85,61.01926865]
[1756533127460,0.06,206.86,206.85,59.08217665]
[1756533127680,0.06,206.86,206.85,61.01926965]
[1756533127883,0.06,206.86,206.85,60.36926965]
[1756533129560,0.06,206.89,206.85,73.10532234]
[1756533130896,0.06,206.86,206.85,73.10532234]
[1756533131697,0.06,206.86,206.85,72.45532234]
[1756533131872,0.06,206.86,206.85,32.59532234]
[1756533132072,0.77,206.86,206.85,4.83442107]
[1756533132283,0.06,206.86,206.85,44.57442107]
[1756533134683,0.06,206.86,206.85,44.51442107]
[1756533135061,0.77,206.86,206.85,44.51442107]
[1756533135261,0.06,206.86,206.85,44.51442107]
[1756533139828,0.06,206.86,206.85,45.16442107]
[1756533140204,0.06,206.86,206.85,44.51442107]
[1756533140905,0.06,206.86,206.85,45.00442107]
[1756533141203,0.06,206.86,206.85,4.83442107]
[1756533141387,0.06,206.86,206.85,44.35442107]
[1756533143000,0.06,206.86,206.85,44.31442107]
[1756533143178,0.06,206.86,206.85,4.83442107]
[1756533143379,0.06,206.86,206.85,44.29442107]
[1756533143871,0.77,206.86,206.83,0.03]
[1756533144076,0.77,206.86,206.84,39.46]
[1756533144275,0.71,206.85,206.84,39.46]
[1756533145403,0.71,206.85,206.84,44.2946548]
[1756533147594,0.71,206.85,206.84,39.44]
[1756533148702,0.71,206.85,206.84,39.47]
[1756533149178,26.71,206.85,206.84,0.03]
[1756533149703,31.54442107,206.85,206.84,0.03]
[1756533155413,0.71,206.85,206.84,0.03]
[1756533156409,31.54442107,206.85,206.84,0.03]
[1756533158410,0.71,206.85,206.84,0.03]
[1756533162313,0.06,206.86,206.84,0.72]
[1756533162606,0.06,206.86,206.85,0.69]
[1756533163622,0.06,206.86,206.85,5.52442107]
[1756533174810,0.06,206.86,206.85,4.83442107]
[1756533175010,0.06,206.86,206.84,0.03]
[1756533175215,0.66,206.85,206.84,0.03]
[1756533180723,158.26,206.85,206.84,0.03]
[1756533182227,163.09442107,206.85,206.84,0.03]
[1756533182798,31.49442107,206.85,206.84,0.03]
[1756533184139,10.25990001,206.85,206.84,0.03]
[1756533184928,0.06,206.86,206.84,0.72]
[1756533185324,0.06,206.86,206.84,2.657375]
[1756533185710,0.06,206.86,206.85,5.52442107]
[1756533186219,0.06,206.86,206.85,19.12001508]
[1756533186418,0.06,206.86,206.85,19.26217665]
[1756533186632,0.06,206.86,206.85,19.74561875]
[1756533187039,0.06,206.86,206.85,21.68280575]
[1756533189821,0.06,206.86,206.85,21.19936365]
[1756533191641,0.06,206.86,206.85,7.46160807]
[1756533191831,0.06,206.86,206.85,39.38]
[1756533192439,0.06,206.86,206.84,0.03]
[1756533192641,0.06,206.86,206.84,39.41]
[1756533193641,0.06,206.86,206.84,0.03]
[1756533193642,0.72,206.85,206.84,0.03]
[1756533195232,26.72,206.85,206.84,0.03]
[1756533195627,50.99585521,206.85,206.84,0.03]
[1756533195839,50.99585521,206.85,206.83,0.03]
[1756533195840,23.58736262,206.84,206.83,0.03]
[1756533196068,26.83800934,206.84,206.83,0.03]
[1756533196242,26.14216157,206.82,206.81,0.03]
[1756533196449,31.84584013,206.82,206.81,0.03]
[1756533196650,32.56584013,206.82,206.81,0.03]
[1756533197175,37.40096245,206.82,206.81,0.03]
[1756533198539,50.99655646,206.82,206.81,0.03]
[1756533198743,54.2448402,206.82,206.81,0.03]
[1756533198965,0.14216157,206.81,206.79,0.03]
[1756533199165,53.69559401,206.8,206.79,0.03]
[1756533199547,59.39927257,206.8,206.79,0.03]
[1756533199761,13.73775558,206.79,206.71,0.03]
[1756533199938,19.44143414,206.79,206.71,0.03]
[1756533200262,20.16143414,206.79,206.71,0.03]
[1756533200641,24.99725792,206.79,206.71,0.03]
[1756533201646,31.55582378,206.79,206.74,0.69]
[1756533202076,5.55582378,206.79,206.74,0.69]
[1756533203241,26.0,206.8,206.76,0.03]
[1756533203448,0.72,206.79,206.76,0.03]
[1756533203945,14.45775558,206.79,206.76,0.03]
[1756533204147,20.16143414,206.79,206.76,0.03]
[1756533204749,24.99725792,206.79,206.76,0.03]
[1756533206251,0.14216157,206.77,206.76,0.03]
[1756533206553,0.14216157,206.77,206.71,0.03]
[1756533206554,26.0,206.72,206.71,0.03]
[1756533206739,26.72,206.72,206.71,0.03]
[1756533206937,31.5574613,206.72,206.71,0.03]
[1756533207976,84.65521688,206.72,206.71,0.03]
[1756533209874,4.28809005,206.77,206.71,0.72]
[1756533210166,5.55534377,206.82,206.71,0.72]
[1756533210354,44.91534377,206.82,206.71,0.72]
[1756533210555,26.0,206.79,206.71,0.72]
[1756533211251,26.0,206.79,206.72,4.8374613]
[1756533211457,26.0,206.79,206.73,0.66]
[1756533211654,26.0,206.8,206.73,0.66]
[1756533212871,26.65,206.8,206.73,0.66]
[1756533213172,26.0,206.8,206.73,5.49722014]
[1756533213349,26.0,206.8,206.74,0.66]
[1756533213549,26.0,206.81,206.74,0.66]
[1756533214873,26.0,206.81,206.75,4.83675937]
[1756533215057,26.0,206.81,206.75,5.49675937]
[1756533215478,26.0,206.79,206.71,0.03]
[1756533215654,26.0,206.79,206.71,0.69]
[1756533215851,0.65,206.78,206.71,0.69]
[1756533216650,5.4861906,206.78,206.71,0.69]
[1756533218279,5.4861906,206.78,206.71,0.03]
[1756533218460,5.4861906,206.78,206.71,0.69]
[1756533218962,26.0,206.75,206.71,0.03]
[1756533219153,26.0,206.74,206.71,0.03]
[1756533219359,26.65,206.74,206.71,0.03]
[1756533220567,0.65,206.73,206.71,0.03]
[1756533220950,0.65,206.72,206.71,0.03]
[1756533221559,30.83717377,206.74,206.71,0.03]
[1756533221879,31.48717377,206.74,206.71,0.03]
[1756533223472,131.6,206.73,206.71,0.03]
[1756533226067,0.65,206.81,206.72,0.66]
[1756533226477,26.0,206.79,206.72,0.66]
[1756533226657,0.65,206.81,206.72,0.66]
[1756533227060,26.0,206.79,206.72,0.66]
[1756533227489,26.0,206.79,206.73,4.8372273]
[1756533227691,26.0,206.79,206.74,0.66]
[1756533227876,0.71,206.86,206.75,13.59559401]
[1756533228074,0.71,206.86,206.76,0.66]
[1756533229065,26.71,206.86,206.76,0.66]
[1756533229678,0.71,206.86,206.77,4.83629153]
[1756533229994,0.65,206.84,206.78,0.66]
[1756533231090,0.71,206.86,206.78,0.66]
[1756533232178,0.71,206.85,206.78,5.49595098]
[1756533234592,26.0,206.82,206.76,0.66]
[1756533234785,26.65,206.82,206.76,0.66]
[1756533235577,26.65,206.82,206.75,4.83675937]
[1756533235780,0.65,206.81,206.74,5.49699322]
[1756533236394,4.83549882,206.81,206.74,0.66]
[1756533236693,0.65,206.8,206.72,4.8374613]
[1756533236895,26.0,206.78,206.72,0.66]
[1756533237102,26.65,206.78,206.72,0.66]
[1756533238385,0.65,206.78,206.72,0.66]
[1756533238783,0.65,206.78,206.72,5.49745761]
[1756533238997,26.65,206.81,206.73,0.66]
[1756533239302,0.65,206.81,206.73,0.66]
[1756533239501,26.0,206.8,206.73,0.66]
[1756533240883,0.65,206.81,206.74,4.83699332]
[1756533241604,0.66,206.8,206.71,0.03]
[1756533241781,0.66,206.8,206.71,4.86766882]
[1756533241984,0.66,206.79,206.71,4.86766882]
[1756533242193,132.26,206.78,206.72,0.67]
[1756533244906,26.0,206.74,206.71,0.03]
[1756533245292,26.14216157,206.72,206.71,0.03]
[1756533245588,29.91379697,206.72,206.68,0.03]
[1756533245794,29.91379697,206.72,206.66,0.03]
[1756533245795,26.0,206.68,206.66,0.03]
[1756533245993,26.0,206.67,206.66,0.03]
[1756533246310,40.39775558,206.67,206.66,0.03]
[1756533246505,43.65043485,206.67,206.66,0.03]
[1756533246920,48.48906648,206.67,206.66,0.03]
[1756533247282,52.77715653,206.67,206.66,1e-08]
[1756533247485,57.91100176,206.67,206.66,1e-08]
[1756533247710,59.85157176,206.67,206.66,1e-08]
[1756533247920,59.85157176,206.67,206.65,1e-08]
[1756533247921,13.73775558,206.66,206.65,1e-08]
[1756533248212,32.19221476,206.66,206.65,1e-08]
[1756533248393,39.73775558,206.64,206.63,1e-08]
[1756533248596,86.5385249,206.64,206.63,1e-08]
[1756533248798,87.1985249,206.64,206.63,1e-08]
[1756533249000,92.037859,206.64,206.63,1e-08]
[1756533250218,88.78517973,206.64,206.63,1e-08]
[1756533250789,31.09025162,206.64,206.63,1e-08]
[1756533251091,5.498953,206.66,206.63,1e-08]
[1756533251292,26.0,206.64,206.63,1e-08]
[1756533252489,0.14216157,206.65,206.63,1e-08]
[1756533252703,0.66,206.64,206.63,1e-08]
[1756533252910,5.4993341,206.64,206.63,1e-08]
[1756533254094,30.98126187,206.65,206.63,1e-08]
[1756533254413,26.0,206.64,206.63,1e-08]
[1756533255084,5.64126187,206.65,206.63,1e-08]
[1756533255999,136.4393341,206.64,206.63,1e-08]
[1756533257190,137.0993341,206.64,206.63,1e-08]
[1756533259392,150.83708968,206.64,206.63,1e-08]
[1756533259612,45.23708968,206.64,206.63,1e-08]
[1756533259791,19.23708968,206.64,206.63,1e-08]
[1756533264105,45.23708968,206.64,206.63,1e-08]
[1756533264302,13.73775558,206.63,206.62,1e-08]
[1756533264501,63.60621129,206.63,206.62,1e-08]
[1756533264827,64.26621129,206.63,206.62,1e-08]
[1756533265120,145.30775557,206.59,206.58,0.03]
[1756533265306,52.97775558,206.59,206.58,0.03]
[1756533265829,58.47826092,206.59,206.58,0.03]
[1756533269029,57.81826092,206.59,206.58,0.03]
[1756533270006,58.47826092,206.59,206.58,0.03]
[1756533271429,58.47826092,206.59,206.58,0.74]
[1756533271430,26.14216157,206.59,206.58,0.74]
[1756533271627,30.98266691,206.59,206.58,0.74]
[1756533271912,26.0,206.59,206.58,0.74]
[1756533276239,26.14216157,206.59,206.58,0.03]
[1756533276435,39.73775558,206.56,206.55,0.03]
[1756533276839,50.42280917,206.56,206.53,0.03]
[1756533277020,13.59559401,206.54,206.53,0.03]
[1756533277337,6.78272036,206.56,206.53,0.74]
[1756533277513,0.85216157,206.55,206.53,0.03]
[1756533277710,13.73775558,206.54,206.53,0.03]
[1756533278131,14.44775558,206.54,206.53,0.03]
[1756533278630,9.97505359,206.56,206.53,0.03]
[1756533278834,30.84167715,206.54,206.53,0.03]
[1756533281737,4.84167715,206.54,206.53,0.03]